fUSD/lending_fUSD_20260502
["ID","MTS","AMOUNT","RATE_DAILY","PERIOD"]
[421455439,1777690245000,-217.0,0.00033133,30]
[421455409,1777690245000,-151.0,0.00032877,7]
[421455411,1777690245000,-151.0,0.00032877,7]
[421455418,1777690245000,-500.0,0.00032877,2]
[421455412,1777690245000,-151.0,0.00032877,7]
[421455417,1777690245000,-500.0,0.00032877,2]
[421455408,1777690245000,-151.0,0.00032877,7]
[421455410,1777690245000,-151.0,0.00032877,7]
[421455414,1777690245000,-500.0,0.00032877,2]
[421455413,1777690245000,-219.341915,0.00032877,7]
[421455416,1777690245000,-500.79855509,0.00032877,2]
[421455419,1777690245000,-500.0,0.00032877,2]
[421455420,1777690245000,-403.56755021,0.00032877,2]
[421455423,1777690245000,-51985.93231207,0.00033,2]
[421455463,1777690245000,-150.0,0.00033641,2]
[421455422,1777690245000,-1108.01879729,0.00032999,30]
[421455421,1777690245000,-500.0,0.00032999,120]
[421455430,1777690245000,-500.0,0.00033,58]
[421455434,1777690245000,-270.66277751,0.00033,58]
[421455442,1777690245000,-224.0,0.00033133,30]
[421455443,1777690245000,-783.0,0.00033133,30]
[421455431,1777690245000,-500.0,0.00033,58]
[421455441,1777690245000,-154.0,0.00033133,30]
[421455428,1777690245000,-500.0,0.00033,58]
[421455427,1777690245000,-500.0,0.00033,58]
[421455429,1777690245000,-500.0,0.00033,58]
[421455425,1777690245000,-892.02492137,0.00033,120]
[421455424,1777690245000,-569.777439,0.00033,14]
[421455426,1777690245000,-470.79172706,0.00033,120]
[421455478,1777690246000,-295.7851576,0.000339,2]
[421455473,1777690246000,-263.053458,0.000339,7]
[421455474,1777690246000,-263.053458,0.000339,7]
[421455483,1777690246000,-181.80520198,0.000339,2]
[421455476,1777690246000,-263.053458,0.000339,7]
[421455477,1777690246000,-401.81207557,0.000339,2]
[421455470,1777690246000,-175.9810986,0.00033838,2]
[421455479,1777690246000,-1100.0,0.000339,12]
[421455475,1777690246000,-263.053458,0.000339,7]
[421455481,1777690246000,-1813.34615771,0.000339,2]
[421455482,1777690246000,-1841.90364684,0.000339,2]
[421455484,1777690246000,-3153.18342495,0.000339,2]
[421455471,1777690246000,-892.02492137,0.000339,120]
[421455469,1777690246000,-275.8644151,0.00033838,2]
[421455480,1777690246000,-1698.58389063,0.000339,2]
[421455485,1777690246000,-312.22297551,0.000339,6]
[421455472,1777690246000,-470.79172706,0.000339,120]
[421455487,1777690246000,-1858.44919,0.00034,31]
[421455486,1777690246000,-150.0,0.00033973,5]
[421455505,1777690246000,-1040.0,0.00022013,7]
[421455504,1777690246000,-500.0,0.00034,120]
[421455502,1777690246000,-1583.41443103,0.00034,120]
[421455503,1777690246000,-12573.72642427,0.00034,120]
[421455501,1777690246000,-956.485885,0.00034,120]
[421455500,1777690246000,-1260.0,0.00034,120]
[421455496,1777690246000,-670.48004675,0.00034,120]
[421455492,1777690246000,-1882.15618776,0.00034,120]
[421455499,1777690246000,-1145.91510749,0.00034,120]
[421455498,1777690246000,-203.9920028,0.00022013,7]
[421455497,1777690246000,-1267.1219972,0.00022013,7]
[421455494,1777690246000,-898.06061579,0.00034,120]
[421455493,1777690246000,-1150.44999999,0.00034,120]
[421455491,1777690246000,-1312.93347428,0.00034,120]
[421455495,1777690246000,-1188.74622491,0.00034,120]
[421455488,1777690246000,-396425.61311474,0.00034,120]
[421455506,1777690247000,-427.0,0.00022013,7]
[421455508,1777690247000,-513010.37455627,0.00034,120]
[421455510,1777690247000,-450.0,0.00019638,2]
[421455509,1777690247000,-509.0,0.00019638,2]
[421455507,1777690247000,-639.0,0.00022013,7]
[421455511,1777690249000,-452.55608645,0.00019638,2]
[421455513,1777690249000,-200.0,0.00022979,2]
[421455512,1777690249000,-4619.03391355,0.00019638,2]
[421455515,1777690249000,-200.0,0.00024669,2]
[421455514,1777690249000,-200.0,0.00023824,2]
[421455517,1777690249000,-200.0,0.0002636,2]
[421455519,1777690249000,-1500.0,0.00027397,2]
[421455518,1777690249000,-200.0,0.00027205,2]
[421455516,1777690249000,-200.0,0.00025515,2]
[421455520,1777690249000,-495.780499,0.00027397,10]
[421455523,1777690263000,176.98,0.00027397,120]
[421455524,1777690703000,2500.0,0.00027762,120]
[421455533,1777691152000,-1664.0,0.00019827,2]
[421455532,1777691152000,-150.235,0.00019827,2]
[421455534,1777691152000,-202.30929382,0.000199,2]
[421455543,1777691431000,-251.02468515,0.00019999,2]
[421455542,1777691431000,-66.11273735,0.000199,2]
[421455557,1777691439000,-872.96274502,0.00019999,2]
[421455556,1777691439000,-48.97531485,0.00019999,2]
[421455559,1777691440000,-327.03725498,0.00019999,2]
[421455560,1777691440000,-161.0,0.0002,2]
[421455562,1777691440000,-430.0,0.0002,2]
[421455561,1777691440000,-154.0,0.0002,2]
[421455566,1777691440000,-154.0,0.00021,2]
[421455565,1777691440000,-650.0,0.0002,2]
[421455564,1777691440000,-157.0,0.0002,2]
[421455570,1777691440000,-155.0,0.00021,2]
[421455574,1777691440000,-650.0,0.00021,2]
[421455563,1777691440000,-155.0,0.0002,2]
[421455578,1777691440000,-1044.0,0.00021741,7]
[421455572,1777691440000,-157.0,0.00021,2]
[421455586,1777691440000,-311.07665475,0.00021741,7]
[421455589,1777691440000,-250.0,0.0002189,2]
[421455590,1777691440000,-224.80935115,0.0002189,2]
[421455588,1777691440000,-1195.0,0.00021881,2]
[421455576,1777691440000,-650.0,0.00021741,7]
[421455568,1777691440000,-430.0,0.00021,2]
[421455580,1777691440000,-221.92334525,0.00021741,7]
[421455587,1777691440000,-420.0,0.00021777,2]
[421455605,1777691442000,-322.0,0.0002189,7]
[421455600,1777691442000,-315.39077891,0.0002189,7]
[421455601,1777691442000,-814.76872572,0.00020644,2]
[421455603,1777691442000,-641.60922109,0.0002189,7]
[421455607,1777691442000,-314.7518173,0.0002189,2]
[421455602,1777691442000,-849.23127428,0.00020644,2]
[421455604,1777691442000,-541.0,0.0002189,7]
[421455612,1777691442000,-650.0,0.00022,2]
[421455609,1777691442000,-430.0,0.00022,2]
[421455608,1777691442000,-250.0,0.0002189,2]
[421455611,1777691442000,-157.0,0.00022,2]
[421455610,1777691442000,-155.0,0.00022,2]
[421455614,1777691442000,-430.0,0.00023,2]
[421455613,1777691442000,-1575.34,0.00022407,2]
[421455616,1777691442000,-170.0,0.00023,2]
[421455621,1777691442000,-587.0,0.00023712,2]
[421455619,1777691442000,-650.0,0.00023,2]
[421455623,1777691442000,-430.0,0.00024,2]
[421455618,1777691442000,-157.0,0.00023,2]
[421455606,1777691442000,-25.19064885,0.0002189,2]
[421455655,1777691443000,-151.0,0.00027379,2]
[421455657,1777691443000,-151.0,0.00027379,2]
[421455645,1777691443000,-151.0,0.00027379,2]
[421455647,1777691443000,-151.0,0.00027379,2]
[421455661,1777691443000,-151.0,0.00027379,2]
[421455663,1777691443000,-151.0,0.00027379,2]
[421455666,1777691443000,-151.0,0.00027379,2]
[421455649,1777691443000,-151.0,0.00027379,2]
[421455637,1777691443000,-151.0,0.00027379,2]
[421455651,1777691443000,-151.0,0.00027379,2]
[421455665,1777691443000,-151.0,0.00027379,2]
[421455638,1777691443000,-151.0,0.00027379,2]
[421455636,1777691443000,-151.0,0.00027379,2]
[421455641,1777691443000,-151.0,0.00027379,2]
[421455634,1777691443000,-605.0,0.00027378,2]
[421455631,1777691443000,-279.89,0.00025897,2]
[421455632,1777691443000,-200.0,0.0002709,2]
[421455633,1777691443000,-852.0,0.00027137,2]
[421455630,1777691443000,-663.0,0.00025,2]
[421455629,1777691443000,-443.0,0.00025,2]
[421455626,1777691443000,-650.0,0.00024,2]
[421455628,1777691443000,-231.0,0.00024658,2]
[421455627,1777691443000,-152.63,0.00024658,2]
[421455625,1777691443000,-166.0,0.00024,2]
[421455659,1777691443000,-151.0,0.00027379,2]
[421455644,1777691443000,-151.0,0.00027379,2]
[421455653,1777691443000,-151.0,0.00027379,2]
[421455635,1777691443000,-151.0,0.00027379,2]
[421455670,1777691443000,-157.82459945,0.00027379,2]
[421455668,1777691443000,-151.0,0.00027379,2]
[421455702,1777691443000,-8987.01,0.00028789,10]
[421455700,1777691443000,-335.58,0.00028788,30]
[421455696,1777691443000,-852.0,0.00028739,3]
[421455699,1777691443000,-2688.49,0.00028767,2]
[421455694,1777691443000,-335.58,0.00028725,2]
[421455695,1777691443000,-334.32,0.00028725,2]
[421455692,1777691443000,-335.58,0.00028693,30]
[421455703,1777691443000,-394.6006884,0.00028789,10]
[421455693,1777691443000,-334.32,0.00028693,30]
[421455698,1777691443000,-334.32,0.00028756,7]
[421455701,1777691443000,-334.32,0.00028788,30]
[421455682,1777691443000,-1000.0,0.00027755,2]
[421455697,1777691443000,-335.58,0.00028756,7]
[421455680,1777691443000,-852.0,0.00027671,2]
[421455678,1777691443000,-200.0,0.00027608,2]
[421455685,1777691443000,-2000.0,0.00028387,2]
[421455686,1777691443000,-5000.0,0.00028527,2]
[421455691,1777691443000,-334.32,0.00028661,7]
[421455688,1777691443000,-335.58,0.0002863,2]
[421455689,1777691443000,-334.32,0.0002863,2]
[421455676,1777691443000,-300.0,0.00027548,2]
[421455684,1777691443000,-852.0,0.00028205,3]
[421455687,1777691443000,-154.17254676,0.00028537,2]
[421455690,1777691443000,-335.58,0.00028661,7]
[421455674,1777691443000,-1500.0,0.00027397,2]
[421455672,1777691443000,-704.6,0.00027395,2]
[421455705,1777691445000,-1664.0,0.00023644,2]
[421455719,1777691446000,-1462.80620515,0.00028799,2]
[421455712,1777691446000,-228.57,0.0002879,2]
[421455717,1777691446000,-1462.80620515,0.00028799,2]
[421455716,1777691446000,-1462.80620515,0.00028799,2]
[421455714,1777691446000,-1462.80620515,0.00028799,2]
[421455706,1777691446000,-1664.0,0.00026644,2]
[421455710,1777691446000,-961.0,0.00028789,10]
[421455711,1777691446000,-7094.5693116,0.00028789,10]
[421455708,1777691446000,-298.0,0.00028789,10]
[421455707,1777691446000,-238.46,0.00027397,20]
[421455721,1777691446000,-1462.80620515,0.00028799,2]
[421455709,1777691446000,-1218.0,0.00028789,10]
[421455718,1777691446000,-1462.80620515,0.00028799,2]
[421455713,1777691446000,-610.37436755,0.00028799,2]
[421455720,1777691446000,-1462.80620515,0.00028799,2]
[421455723,1777691446000,-370.99820791,0.00028799,2]
[421455729,1777691446000,-1462.80620515,0.00028799,2]
[421455725,1777691446000,-1462.80620515,0.00028799,2]
[421455731,1777691446000,-1462.80620515,0.00028799,2]
[421455728,1777691446000,-1462.80620515,0.00028799,2]
[421455733,1777691446000,-1065.06772532,0.00028799,2]
[421455732,1777691446000,-291.17277217,0.00028799,2]
[421455726,1777691446000,-1394.44699783,0.00028799,2]
[421455727,1777691446000,-68.35920732,0.00028799,2]
[421455724,1777691446000,-1091.80799724,0.00028799,2]
[421455722,1777691446000,-1462.80620515,0.00028799,2]
[421455715,1777691446000,-1462.80620515,0.00028799,2]
[421455730,1777691446000,-1462.80620515,0.00028799,2]
[421455739,1777692346000,-59.98536659,0.00013962,2]
[421455738,1777692346000,-1166.81238741,0.00013481,2]
[421455737,1777692346000,-250.0,0.00013,2]
[421455740,1777692427000,202965.18947219,0.00012,2]
[421455741,1777692432000,-388.00231315,0.00012,2]
[421455745,1777692631000,-278.52586619,0.00010681,2]
[421455746,1777692631000,-921.47413381,0.00010681,2]
[421455748,1777692631000,-2500.0,0.00011749,2]
[421455752,1777692631000,-150.0,0.00011999,2]
[421455750,1777692631000,-640.57720001,0.00011999,2]
[421455747,1777692631000,-47778.23197687,0.00010682,2]
[421455751,1777692631000,-553.50063222,0.00011999,2]
[421455753,1777692631000,-278825.89531428,0.00012,2]
[421455759,1777692631000,-4852.08459819,0.00012,2]
[421455756,1777692631000,-316.11449079,0.00012,2]
[421455758,1777692631000,-467.29685263,0.00012,2]
[421455754,1777692631000,-5734.77464764,0.00012,2]
[421455755,1777692631000,-1121.64785659,0.00012,2]
[421455749,1777692631000,-150.0,0.00011999,2]
[421455757,1777692631000,-1075.43,0.00012,2]
[421455765,1777692637000,-5325.29,0.00012,2]
[421455766,1777692638000,-16647.09083822,0.00012,2]
[421455767,1777692638000,-12813.51785801,0.00012,2]
[421455815,1777692640000,-6030.36267889,0.00012,2]
[421455814,1777692640000,-4991.82017095,0.00012,2]
[421455813,1777692640000,-3551.16601864,0.00012,2]
[421455819,1777692642000,-1441.83970756,0.00012,2]
[421455820,1777692643000,-619.0,0.00012,2]
[421455823,1777692646000,-2861.17303206,0.00012,2]
[421455824,1777692646000,-5184.44368243,0.00012,2]
[421455826,1777692646000,-20106.13087636,0.00012,2]
[421455827,1777692646000,-3016.57165071,0.00012,2]
[421455829,1777692714000,352.86137696,0.00027985,120]
[421455831,1777692738000,500.0,0.00029452,120]
[421455833,1777693022000,296.76,0.00028848,120]
[421455832,1777693022000,296.76,0.00026444,120]
[421455834,1777693370000,235.49160392,0.00030137,120]
[421455835,1777693421000,1586.0,0.00030137,120]
[421455836,1777693664000,504419.85237834,0.0003,120]
[421455847,1777693831000,-532.43672684,0.000119,2]
[421455844,1777693831000,-166.331,0.0001176,2]
[421455841,1777693831000,-348.50366075,0.0001166,2]
[421455843,1777693831000,-461.348,0.0001176,2]
[421455842,1777693831000,-151.49633925,0.0001166,2]
[421455845,1777693831000,-1114.16159444,0.000119,2]
[421455846,1777693831000,-2830.61983812,0.000119,2]
[421455853,1777693831000,-151.0,0.00011993,2]
[421455849,1777693831000,-241.04377195,0.000119,2]
[421455852,1777693831000,-151.0,0.00011993,2]
[421455850,1777693831000,-112.85072805,0.000119,2]
[421455848,1777693831000,-276.60650135,0.000119,2]
[421455851,1777693831000,-792.07357358,0.000119,2]
[421455854,1777693832000,-151.0,0.00011993,2]
[421455855,1777693832000,-151.0,0.00011993,2]
[421455857,1777693832000,-1157.22138104,0.00011999,3]
[421455856,1777693832000,-206.8571084,0.00011999,3]
[421455858,1777693832000,-421386.01738052,0.00012,2]
[421455859,1777693832000,-114110.29100407,0.00012,2]
[421455860,1777693832000,-824.83,0.00012,2]
[421455874,1777693837000,-41544.00527259,0.00012,2]
[421455875,1777693837000,-351.22845105,0.00012,2]
[421455872,1777693837000,-651.03615738,0.000119,2]
[421455876,1777693838000,-852.34610723,0.00012,2]
[421455877,1777693838000,-7618.02974604,0.00012,2]
[421455878,1777693838000,-812.50323552,0.00012,2]
[421455880,1777693838000,-13142.72632424,0.00012,2]
[421455881,1777693838000,-3216.5170958,0.00012,2]
[421455882,1777693838000,-654.6,0.00012,2]
[421455879,1777693838000,-341.50517263,0.00012,2]
[421455894,1777693840000,-250.0,0.00012826,2]
[421455888,1777693840000,-414.78281653,0.00012,2]
[421455889,1777693840000,-1198.04289802,0.00012,2]
[421455890,1777693840000,-22018.5253235,0.00012,2]
[421455891,1777693840000,-665.32180989,0.00012,2]
[421455892,1777693840000,-261.75,0.000121,2]
[421455895,1777693840000,-46940.23682774,0.00012844,2]
[421455896,1777693840000,-1643.15886456,0.00012844,2]
[421455898,1777693840000,-606.6000014,0.00012844,2]
[421455897,1777693840000,-534.0,0.00012844,2]
[421455900,1777693840000,-2772.0869648,0.00012844,2]
[421455899,1777693840000,-16621.3130338,0.00012844,2]
[421455893,1777693840000,-162.41759262,0.00012393,2]
[421455920,1777693843000,-2128.479129,0.00012844,2]
[421455919,1777693843000,-3921.5591235,0.00012844,2]
[421455918,1777693843000,-7682.90292,0.00012844,2]
[421455922,1777693843000,-900.0,0.000129,4]
[421455926,1777693843000,-11598.94350392,0.00013626,2]
[421455925,1777693843000,-250.0,0.00013626,2]
[421455924,1777693843000,-250.0,0.00013,2]
[421455921,1777693843000,-14571.6055896,0.00012844,2]
[421455923,1777693843000,-151.0,0.00013,2]
[421455980,1777693846000,-2694.42319541,0.00013626,2]
[421455979,1777693846000,-7604.97829046,0.00013626,2]
[421455981,1777693846000,-631.22313952,0.00013626,2]
[421455982,1777693846000,-288.77416802,0.00013626,2]
[421455983,1777693846000,-917.11505358,0.00013626,2]
[421455978,1777693846000,-11695.83084495,0.00013626,2]
[421455985,1777693846000,-244.26208595,0.00013626,2]
[421455986,1777693846000,-3118.62,0.00013698,2]
[421455988,1777693846000,-508.07404194,0.00013698,2]
[421455987,1777693846000,-3118.62,0.00013698,2]
[421455989,1777693846000,-508.0,0.00013698,2]
[421455984,1777693846000,-612.42387766,0.00013626,2]
[421455993,1777694709000,2816.4,0.00028799,120]
[421455995,1777694738000,-1710.20418862,0.00012201,2]
[421455994,1777694738000,-252.372927,0.00012201,2]
[421456019,1777695032000,-2500.0,0.00014904,2]
[421456017,1777695032000,-151.20955361,0.00014264,2]
[421456018,1777695032000,-151.20955361,0.00014728,2]
[421456016,1777695032000,-2306.18626765,0.0001421,7]
[421456014,1777695032000,-2816.4,0.00013698,2]
[421456012,1777695032000,-2816.4,0.00013698,2]
[421456010,1777695032000,-313.94704033,0.00013421,2]
[421456008,1777695032000,-1139.4352094,0.00012201,2]
[421456011,1777695032000,-523.10387962,0.00013421,2]
[421456002,1777695032000,-99.98601225,0.000122,2]
[421456009,1777695032000,-162.41759262,0.00012403,2]
[421456006,1777695032000,-715.40061664,0.00012201,2]
[421456007,1777695032000,-267.5652618,0.00012201,2]
[421456005,1777695032000,-874.59964105,0.00012201,2]
[421456004,1777695032000,-1955.36562269,0.00012201,2]
[421456003,1777695032000,-227.01398775,0.000122,2]
[421456001,1777695032000,-202.30929382,0.00012101,2]
[421456020,1777695032000,-2000.0,0.00014991,2]
[421456013,1777695032000,-2816.4,0.00013698,2]
[421456022,1777695032000,-150.0,0.00015078,2]
[421456015,1777695032000,-166.66,0.00013952,2]
[421456023,1777695032000,-200.0,0.0001513,2]
[421456024,1777695032000,-178.05,0.00015173,2]
[421456037,1777695032000,-53.94230568,0.0001589,2]
[421456040,1777695032000,-500.0,0.0001589,2]
[421456038,1777695032000,-500.0,0.0001589,2]
[421456035,1777695032000,-219.67226411,0.0001589,2]
[421456036,1777695032000,-446.05769432,0.0001589,2]
[421456033,1777695032000,-361.97048499,0.0001589,2]
[421456044,1777695032000,-500.0,0.0001589,2]
[421456034,1777695032000,-280.32773589,0.0001589,2]
[421456046,1777695032000,-144.77600538,0.0001589,2]
[421456031,1777695032000,-425.83306249,0.0001589,2]
[421456030,1777695032000,-74.16693751,0.0001589,2]
[421456028,1777695032000,-151.20955361,0.00015656,2]
[421456029,1777695032000,-261.75,0.000158,2]
[421456027,1777695032000,-200.0,0.00015293,2]
[421456042,1777695032000,-500.0,0.0001589,2]
[421456026,1777695032000,-168.52,0.00015242,2]
[421456025,1777695032000,-151.20955361,0.00015192,2]
[421456021,1777695032000,-300.0,0.00015,2]
[421456032,1777695032000,-138.02951501,0.0001589,2]
[421456089,1777695038000,-500.0,0.0001589,2]
[421456087,1777695038000,-355.22399462,0.0001589,2]
[421456088,1777695038000,-500.0,0.0001589,2]
[421456092,1777695038000,-500.0,0.0001589,2]
[421456091,1777695038000,-500.0,0.0001589,2]
[421456093,1777695038000,-397.60000287,0.0001589,2]
[421456096,1777695038000,-456.70516519,0.00016154,2]
[421456094,1777695038000,-151.19868981,0.0001589,2]
[421456095,1777695038000,-151.20955361,0.00016121,2]
[421456090,1777695038000,-500.0,0.0001589,2]
[421456114,1777695040000,-43.29483481,0.00016154,2]
[421456116,1777695040000,-151.0,0.00016154,2]
[421456117,1777695040000,-500.0,0.00016154,2]
[421456115,1777695040000,-500.0,0.00016154,2]
[421456119,1777695040000,-500.0,0.00016154,2]
[421456121,1777695040000,-439.26285268,0.00016154,2]
[421456118,1777695040000,-151.0,0.00016154,2]
[421456120,1777695040000,-151.0,0.00016154,2]
[421456142,1777695044000,-151.0,0.00016154,2]
[421456144,1777695044000,-151.0,0.00016154,2]
[421456141,1777695044000,-60.73714732,0.00016154,2]
[421456143,1777695044000,-582.51347654,0.00016154,2]
[421456146,1777695044000,-151.0,0.00016154,2]
[421456145,1777695044000,-151.0,0.00016154,2]
[421456147,1777695044000,-38.07966141,0.00016154,2]
[421456151,1777695044000,-150.30302409,0.00016154,2]
[421456154,1777695044000,-166.66,0.00016255,2]
[421456148,1777695044000,-112.92033859,0.00016154,2]
[421456153,1777695044000,-397.77718481,0.00016154,2]
[421456150,1777695044000,-151.0,0.00016154,2]
[421456152,1777695044000,-11.80527572,0.00016154,2]
[421456155,1777695044000,-500.0,0.00016428,2]
[421456156,1777695044000,-235.45414048,0.00016438,2]
[421456157,1777695044000,-151.20955361,0.00016585,2]
[421456158,1777695044000,-1272.96180817,0.00016621,2]
[421456149,1777695044000,-151.0,0.00016154,2]
[421456163,1777695046000,-500.0,0.00016702,2]
[421456173,1777695046000,-1079.24482436,0.00016717,2]
[421456167,1777695046000,-500.87192563,0.00016717,2]
[421456164,1777695046000,-500.0,0.00016717,2]
[421456161,1777695046000,-322.24807931,0.00016621,2]
[421456162,1777695046000,-357.48958326,0.00016621,2]
[421456160,1777695046000,-1820.26233743,0.00016621,2]
[421456159,1777695046000,-273.19669183,0.00016621,2]
[421456165,1777695046000,-1079.24482436,0.00016717,2]
[421456168,1777695046000,-500.0,0.00016717,2]
[421456166,1777695046000,-153.39936383,0.00016717,2]
[421456169,1777695046000,-500.0,0.00016717,2]
[421456172,1777695046000,-500.0,0.00016717,2]
[421456171,1777695046000,-501.37342933,0.00016717,2]
[421456174,1777695046000,-500.0,0.00016717,2]
[421456175,1777695046000,-1079.24482436,0.00016717,2]
[421456176,1777695046000,-500.0,0.00016717,2]
[421456177,1777695046000,-1079.24482436,0.00016717,2]
[421456180,1777695046000,-266.09238737,0.00016717,2]
[421456179,1777695046000,-221.650828,0.00016717,2]
[421456178,1777695046000,-500.0,0.00016717,2]
[421456170,1777695046000,-1079.24482436,0.00016717,2]
[421456181,1777695295000,599735.94451429,0.00030136,120]
[421456182,1777695412000,1760.006,0.00030137,120]
[421456184,1777695601000,2347.0,0.00029278,120]
[421456187,1777695953000,-91.00688134,0.000143,2]
[421456185,1777695953000,-250.0,0.00013,2]
[421456186,1777695953000,-1184.38380762,0.0001365,2]
[421456188,1777695992000,314.0,0.00030136,120]
[421456190,1777696044000,-388.00441324,0.00012,2]
[421456200,1777696232000,-806.6441367,0.00012,2]
[421456199,1777696232000,-1337.70986208,0.00012,2]
[421456201,1777696232000,-1148.76047939,0.00012,2]
[421456206,1777696232000,-673.50309465,0.00012,2]
[421456203,1777696232000,-500.0,0.00012,2]
[421456204,1777696232000,-1322.37552332,0.00012,2]
[421456205,1777696232000,-5608.65899614,0.00012,2]
[421456202,1777696232000,-1249.39039257,0.00012,2]
[421456241,1777696238000,-1049.53799999,0.00012,2]
[421456240,1777696238000,-47536.91267642,0.00012,2]
[421456239,1777696238000,-1525.92095784,0.00012,2]
[421456238,1777696238000,-5344.8976806,0.00012,2]
[421456244,1777696239000,-579.78867862,0.00012,2]
[421456243,1777696239000,-598.26313241,0.00012,2]
[421456245,1777696239000,-2592.62594964,0.00012,2]
[421456254,1777696240000,-471.01386734,0.00012,2]
[421456284,1777696243000,-1210.78842952,0.00014299,2]
[421456266,1777696243000,-500.0,0.00014299,2]
[421456269,1777696243000,-500.0,0.00014299,2]
[421456264,1777696243000,-422.97230252,0.00014299,2]
[421456270,1777696243000,-1210.78842952,0.00014299,2]
[421456267,1777696243000,-1210.78842952,0.00014299,2]
[421456261,1777696243000,-49360.60427989,0.00012,2]
[421456271,1777696243000,-500.0,0.00014299,2]
[421456265,1777696243000,-518.53275029,0.00014299,2]
[421456268,1777696243000,-1210.78842952,0.00014299,2]
[421456262,1777696243000,-2408.99311866,0.000132,2]
[421456283,1777696243000,-500.0,0.00014299,2]
[421456260,1777696243000,-3604.3495842,0.00012,2]
[421456263,1777696243000,-500.0,0.00014299,2]
[421456285,1777696243000,-1210.78842952,0.00014299,2]
[421456259,1777696243000,-8757.60412754,0.00012,2]
[421456274,1777696243000,-500.0,0.00014299,2]
[421456272,1777696243000,-1210.78842952,0.00014299,2]
[421456291,1777696243000,-1210.78842952,0.00014299,2]
[421456289,1777696243000,-1210.78842952,0.00014299,2]
[421456292,1777696243000,-1210.78842952,0.00014299,2]
[421456287,1777696243000,-1210.78842952,0.00014299,2]
[421456288,1777696243000,-500.0,0.00014299,2]
[421456286,1777696243000,-500.0,0.00014299,2]
[421456290,1777696243000,-500.0,0.00014299,2]
[421456280,1777696243000,-1210.78842952,0.00014299,2]
[421456281,1777696243000,-500.0,0.00014299,2]
[421456279,1777696243000,-1210.78842952,0.00014299,2]
[421456275,1777696243000,-1210.78842952,0.00014299,2]
[421456278,1777696243000,-500.0,0.00014299,2]
[421456277,1777696243000,-1210.78842952,0.00014299,2]
[421456276,1777696243000,-500.0,0.00014299,2]
[421456282,1777696243000,-1210.78842952,0.00014299,2]
[421456322,1777696244000,-500.0,0.00014299,2]
[421456314,1777696244000,-1210.78842952,0.00014299,2]
[421456315,1777696244000,-500.0,0.00014299,2]
[421456319,1777696244000,-500.0,0.00014299,2]
[421456320,1777696244000,-1210.78842952,0.00014299,2]
[421456316,1777696244000,-1210.78842952,0.00014299,2]
[421456321,1777696244000,-1210.78842952,0.00014299,2]
[421456325,1777696244000,-1210.78842952,0.00014299,2]
[421456333,1777696244000,-1210.78842952,0.00014299,2]
[421456332,1777696244000,-500.0,0.00014299,2]
[421456328,1777696244000,-500.0,0.00014299,2]
[421456331,1777696244000,-1210.78842952,0.00014299,2]
[421456323,1777696244000,-1210.78842952,0.00014299,2]
[421456324,1777696244000,-500.0,0.00014299,2]
[421456329,1777696244000,-1210.78842952,0.00014299,2]
[421456318,1777696244000,-1210.78842952,0.00014299,2]
[421456327,1777696244000,-500.0,0.00014299,2]
[421456326,1777696244000,-500.0,0.00014299,2]
[421456334,1777696244000,-500.0,0.00014299,2]
[421456317,1777696244000,-500.0,0.00014299,2]
[421456305,1777696244000,-500.0,0.00014299,2]
[421456312,1777696244000,-1210.78842952,0.00014299,2]
[421456335,1777696244000,-1210.78842952,0.00014299,2]
[421456295,1777696244000,-500.0,0.00014299,2]